[Event "*** SCC Grand Prix: Titled Tuesday Blitz"]
[Site "Chess.com"]
[Date "2020.08.25"]
[Round "3"]
[White "The_Chess_Coach"]
[Black "kobemagic"]
[Result "1-0"]
[WhiteElo "2199"]
[BlackElo "2402"]
[TimeControl "180+1"]
[EndTime "10:31:39 PDT"]
[Termination "The_Chess_Coach won on time"]

1. d4 {[%clk 0:03:00.9]} 1... Nf6 {[%clk 0:02:58.8]} 2. c4 {[%clk 0:03:01.2]}
2... c5 {[%clk 0:02:59.3]} 3. d5 {[%clk 0:03:01.1]} 3... b5 {[%clk 0:02:59.9]}
4. Qc2 {[%clk 0:03:00.4]} 4... bxc4 {[%clk 0:02:59.2]} 5. e4 {[%clk 0:03:00.5]}
5... d6 {[%clk 0:03:00.1]} 6. Nc3 {[%clk 0:02:56.7]} 6... g6 {[%clk 0:03:00]} 7.
Bxc4 {[%clk 0:02:55.6]} 7... Bg7 {[%clk 0:02:58.1]} 8. f4 {[%clk 0:02:55.2]}
8... O-O {[%clk 0:02:54.5]} 9. Nf3 {[%clk 0:02:55.2]} 9... Ba6 {[%clk
0:02:54.5]} 10. Bxa6 {[%clk 0:02:36]} 10... Nxa6 {[%clk 0:02:55.4]} 11. O-O
{[%clk 0:02:36.3]} 11... Nb4 {[%clk 0:02:51.5]} 12. Qe2 {[%clk 0:02:34.6]} 12...
a5 {[%clk 0:02:48.5]} 13. a3 {[%clk 0:02:32.7]} 13... Na6 {[%clk 0:02:48.2]} 14.
Rd1 {[%clk 0:02:15.6]} 14... Nd7 {[%clk 0:02:44.1]} 15. e5 {[%clk 0:02:09.2]}
15... Qb6 {[%clk 0:01:57.8]} 16. e6 {[%clk 0:02:02.2]} 16... Nf6 {[%clk
0:01:53.3]} 17. exf7+ {[%clk 0:01:59.7]} 17... Rxf7 {[%clk 0:01:53]} 18. Ng5
{[%clk 0:01:56.5]} 18... Rff8 {[%clk 0:01:46.7]} 19. Ne6 {[%clk 0:01:56.3]}
19... Rf7 {[%clk 0:01:44.9]} 20. Be3 {[%clk 0:01:44.5]} 20... Rb8 {[%clk
0:01:42.7]} 21. Rab1 {[%clk 0:01:33.3]} 21... Nc7 {[%clk 0:01:42.7]} 22. Ng5
{[%clk 0:01:25.4]} 22... Rff8 {[%clk 0:01:41.5]} 23. Bf2 {[%clk 0:01:22]} 23...
h6 {[%clk 0:01:25.8]} 24. Ne6 {[%clk 0:01:17.5]} 24... Nxe6 {[%clk 0:01:25]} 25.
Qxe6+ {[%clk 0:01:18.4]} 25... Kh7 {[%clk 0:01:25.5]} 26. f5 {[%clk 0:01:07.8]}
26... gxf5 {[%clk 0:01:21.6]} 27. Qxf5+ {[%clk 0:01:08.7]} 27... Kh8 {[%clk
0:01:21.3]} 28. Be3 {[%clk 0:01:07]} 28... Qb3 {[%clk 0:01:07.2]} 29. Qg6 {[%clk
0:00:38.2]} 29... Ng8 {[%clk 0:01:02.7]} 30. Qd3 {[%clk 0:00:25.5]} 30... Rf7
{[%clk 0:00:47.5]} 31. Qd2 {[%clk 0:00:13.1]} 31... Qc4 {[%clk 0:00:39.3]} 32.
Qe2 {[%clk 0:00:10.3]} 32... Qxe2 {[%clk 0:00:35.7]} 33. Nxe2 {[%clk 0:00:11.2]}
33... Rxb2 {[%clk 0:00:34.7]} 34. Rxb2 {[%clk 0:00:07.7]} 34... Bxb2 {[%clk
0:00:35.6]} 35. a4 {[%clk 0:00:08.6]} 35... Kh7 {[%clk 0:00:28.5]} 36. Bd2
{[%clk 0:00:06.8]} 36... Nf6 {[%clk 0:00:19.2]} 37. Bxa5 {[%clk 0:00:06.5]}
37... Ne4 {[%clk 0:00:19.6]} 38. Bb6 {[%clk 0:00:05.2]} 38... Nc3 {[%clk
0:00:16.1]} 39. Nxc3 {[%clk 0:00:04.2]} 39... Bxc3 {[%clk 0:00:17]} 40. a5
{[%clk 0:00:05.1]} 40... Bd4+ {[%clk 0:00:17.4]} 41. Kh1 {[%clk 0:00:05.1]}
41... Rf2 {[%clk 0:00:18]} 42. a6 {[%clk 0:00:03.5]} 42... Ra2 {[%clk
0:00:18.5]} 43. a7 {[%clk 0:00:04]} 43... Kg6 {[%clk 0:00:17.8]} 44. h3 {[%clk
0:00:03.6]} 44... Kf7 {[%clk 0:00:16]} 45. Rf1+ {[%clk 0:00:03.8]} 45... Ke8
{[%clk 0:00:16.4]} 46. Re1 {[%clk 0:00:01.2]} 46... Kd7 {[%clk 0:00:15.3]} 47.
Rf1 {[%clk 0:00:02.1]} 47... Bf6 {[%clk 0:00:14]} 48. Rb1 {[%clk 0:00:03]} 48...
c4 {[%clk 0:00:12.2]} 49. Kg1 {[%clk 0:00:03.9]} 49... c3 {[%clk 0:00:12.5]} 50.
Kf1 {[%clk 0:00:04.3]} 50... c2 {[%clk 0:00:12.9]} 51. Rc1 {[%clk 0:00:05.2]}
51... Bg5 {[%clk 0:00:10.9]} 52. Rxc2 {[%clk 0:00:05.3]} 52... Ra6 {[%clk
0:00:08]} 53. Rc7+ {[%clk 0:00:04.1]} 53... Ke8 {[%clk 0:00:07.4]} 54. Rb7
{[%clk 0:00:04.2]} 54... Kf7 {[%clk 0:00:06.7]} 55. Rb8 {[%clk 0:00:04.1]} 55...
Ra1+ {[%clk 0:00:06.5]} 56. Kf2 {[%clk 0:00:03.4]} 56... Bh4+ {[%clk 0:00:05.7]}
57. Kf3 {[%clk 0:00:03.7]} 57... Ra3+ {[%clk 0:00:05.1]} 58. Kg4 {[%clk
0:00:04.1]} 58... Kg6 {[%clk 0:00:01.8]} 59. Rg8+ {[%clk 0:00:02.6]} 59... Kf7
{[%clk 0:00:01.3]} 60. a8=Q {[%clk 0:00:03.5]} 1-0

[Event "*** SCC Grand Prix: Titled Tuesday Blitz"]
[Site "Chess.com"]
[Date "2020.08.25"]
[Round "3"]
[White "swimmerchess"]
[Black "Meri-Arabidze"]
[Result "1-0"]
[WhiteElo "2823"]
[BlackElo "2599"]
[TimeControl "180+1"]
[EndTime "10:31:41 PDT"]
[Termination "swimmerchess won on time"]

1. e4 {[%clk 0:03:00.9]} 1... c5 {[%clk 0:02:59.8]} 2. Nf3 {[%clk 0:03:00.7]}
2... e6 {[%clk 0:03:00.7]} 3. d4 {[%clk 0:03:00.3]} 3... cxd4 {[%clk 0:03:01.6]}
4. Nxd4 {[%clk 0:03:01.2]} 4... Nc6 {[%clk 0:03:02.4]} 5. Nc3 {[%clk 0:03:01.6]}
5... a6 {[%clk 0:03:02.7]} 6. Be2 {[%clk 0:03:01]} 6... d6 {[%clk 0:03:01]} 7.
O-O {[%clk 0:03:00.8]} 7... Nf6 {[%clk 0:03:01.3]} 8. Be3 {[%clk 0:03:01]} 8...
Be7 {[%clk 0:03:01.2]} 9. f4 {[%clk 0:03:01.5]} 9... O-O {[%clk 0:03:01]} 10.
Kh1 {[%clk 0:03:02]} 10... Nxd4 {[%clk 0:02:57.7]} 11. Qxd4 {[%clk 0:03:01.3]}
11... b5 {[%clk 0:02:49.8]} 12. Bf3 {[%clk 0:02:52.9]} 12... Bb7 {[%clk
0:02:49.4]} 13. Rad1 {[%clk 0:02:52.9]} 13... Qc7 {[%clk 0:02:32.8]} 14. e5
{[%clk 0:02:21.5]} 14... Bxf3 {[%clk 0:02:31]} 15. Rxf3 {[%clk 0:02:09.9]} 15...
dxe5 {[%clk 0:02:26.9]} 16. Qxe5 {[%clk 0:02:07]} 16... Qxe5 {[%clk 0:01:59.3]}
17. fxe5 {[%clk 0:02:07.9]} 17... Ng4 {[%clk 0:01:59.7]} 18. Rd7 {[%clk
0:01:50.2]} 18... Nxe3 {[%clk 0:01:52.8]} 19. Rxe3 {[%clk 0:01:51.1]} 19... Bg5
{[%clk 0:01:50.8]} 20. Red3 {[%clk 0:01:46.7]} 20... Bf4 {[%clk 0:01:47.2]} 21.
Ne4 {[%clk 0:00:59.8]} 21... Bxe5 {[%clk 0:01:47]} 22. c3 {[%clk 0:00:57.9]}
22... a5 {[%clk 0:01:39.9]} 23. g3 {[%clk 0:00:53.2]} 23... b4 {[%clk
0:01:38.5]} 24. Kg2 {[%clk 0:00:52.6]} 24... h6 {[%clk 0:01:34.1]} 25. h4 {[%clk
0:00:37.9]} 25... Rfb8 {[%clk 0:01:28.5]} 26. Rd2 {[%clk 0:00:34.3]} 26... bxc3
{[%clk 0:01:27.5]} 27. bxc3 {[%clk 0:00:35.2]} 27... f5 {[%clk 0:01:19.8]} 28.
Nc5 {[%clk 0:00:33.9]} 28... Bxc3 {[%clk 0:01:17.7]} 29. Rc2 {[%clk 0:00:29.6]}
29... Rb2 {[%clk 0:01:10.6]} 30. Rxb2 {[%clk 0:00:29.8]} 30... Bxb2 {[%clk
0:01:11.5]} 31. Nxe6 {[%clk 0:00:30.7]} 31... a4 {[%clk 0:01:04]} 32. Nf4 {[%clk
0:00:26.6]} 32... a3 {[%clk 0:01:01.1]} 33. h5 {[%clk 0:00:24.7]} 33... Rb8
{[%clk 0:00:52.1]} 34. Nd3 {[%clk 0:00:17.6]} 34... Kf8 {[%clk 0:00:39.8]} 35.
Rd5 {[%clk 0:00:17.7]} 35... Bf6 {[%clk 0:00:32.5]} 36. Rxf5 {[%clk 0:00:17.6]}
36... Rb1 {[%clk 0:00:22.4]} 37. Ra5 {[%clk 0:00:15.5]} 37... Bb2 {[%clk
0:00:21]} 38. Kf3 {[%clk 0:00:11.6]} 38... Ra1 {[%clk 0:00:20.9]} 39. Nb4 {[%clk
0:00:10.5]} 39... Bc3 {[%clk 0:00:18.8]} 40. Ra8+ {[%clk 0:00:10.4]} 40... Kf7
{[%clk 0:00:19.2]} 41. Ra7+ {[%clk 0:00:09.6]} 41... Ke6 {[%clk 0:00:17.4]} 42.
Nc2 {[%clk 0:00:09.7]} 42... Rxa2 {[%clk 0:00:14.8]} 43. Nxa3 {[%clk 0:00:10.1]}
43... Bb2 {[%clk 0:00:13.6]} 44. Nb5 {[%clk 0:00:09.9]} 44... Rxa7 {[%clk
0:00:13.3]} 45. Nxa7 {[%clk 0:00:10.8]} 45... Bf6 {[%clk 0:00:12.7]} 46. Nb5
{[%clk 0:00:10.9]} 46... Kf5 {[%clk 0:00:12.8]} 47. Nd6+ {[%clk 0:00:10.9]}
47... Kg5 {[%clk 0:00:10.6]} 48. g4 {[%clk 0:00:11.4]} 48... Kh4 {[%clk
0:00:04.7]} 49. Kf4 {[%clk 0:00:09.1]} 49... Bg5+ {[%clk 0:00:04.1]} 50. Kf5
{[%clk 0:00:09.6]} 50... Be7 {[%clk 0:00:02.5]} 51. Ne8 {[%clk 0:00:09.4]} 51...
Bg5 {[%clk 0:00:01.5]} 52. Nxg7 {[%clk 0:00:09.3]} 52... Kg3 {[%clk 0:00:01.8]}
53. Ne6 {[%clk 0:00:09]} 53... Be3 {[%clk 0:00:01.7]} 54. g5 {[%clk 0:00:08.9]}
54... hxg5 {[%clk 0:00:01.7]} 55. h6 {[%clk 0:00:08.6]} 55... Bc1 {[%clk
0:00:01.7]} 56. Kg6 {[%clk 0:00:08.3]} 56... Bb2 {[%clk 0:00:02]} 57. Ng7 {[%clk
0:00:08.3]} 57... g4 {[%clk 0:00:02.2]} 58. h7 {[%clk 0:00:08.7]} 58... Kf2
{[%clk 0:00:02.8]} 59. h8=Q {[%clk 0:00:09]} 59... g3 {[%clk 0:00:03.2]} 60.
Qf8+ {[%clk 0:00:09]} 60... Kg1 {[%clk 0:00:02.8]} 61. Nh5 {[%clk 0:00:08.9]}
61... g2 {[%clk 0:00:03.2]} 62. Nf4 {[%clk 0:00:09.1]} 62... Bc1 {[%clk
0:00:01.5]} 63. Ne2+ {[%clk 0:00:08.6]} 63... Kh1 {[%clk 0:00:01.2]} 64. Qh8+
{[%clk 0:00:08.5]} 1-0

[Event "*** SCC Grand Prix: Titled Tuesday Blitz"]
[Site "Chess.com"]
[Date "2020.08.25"]
[Round "3"]
[White "rasmussvane"]
[Black "Mischuk_D"]
[Result "1-0"]
[WhiteElo "2867"]
[BlackElo "2621"]
[TimeControl "180+1"]
[EndTime "10:31:46 PDT"]
[Termination "rasmussvane won by checkmate"]

1. Nf3 {[%clk 0:03:00.9]} 1... Nf6 {[%clk 0:02:59.6]} 2. g3 {[%clk 0:03:00.8]}
2... g6 {[%clk 0:03:00.2]} 3. Bg2 {[%clk 0:03:01.4]} 3... Bg7 {[%clk 0:03:00.7]}
4. O-O {[%clk 0:03:02.3]} 4... O-O {[%clk 0:03:01]} 5. d4 {[%clk 0:03:02.9]}
5... d5 {[%clk 0:03:01.3]} 6. c4 {[%clk 0:03:03]} 6... c6 {[%clk 0:03:01.8]} 7.
Qb3 {[%clk 0:03:03.4]} 7... Qb6 {[%clk 0:03:00.6]} 8. Nc3 {[%clk 0:03:03.9]}
8... Rd8 {[%clk 0:03:00.4]} 9. Bd2 {[%clk 0:03:03.6]} 9... dxc4 {[%clk
0:02:52.3]} 10. Qxc4 {[%clk 0:03:04.5]} 10... Be6 {[%clk 0:02:51.6]} 11. Qa4
{[%clk 0:02:59.1]} 11... Na6 {[%clk 0:02:48.4]} 12. Rfc1 {[%clk 0:02:47.1]}
12... Bf5 {[%clk 0:02:36.1]} 13. Qa3 {[%clk 0:02:22.4]} 13... Qb4 {[%clk
0:02:23.9]} 14. e3 {[%clk 0:01:50]} 14... Ne4 {[%clk 0:02:03.8]} 15. Qxb4 {[%clk
0:01:44.4]} 15... Nxb4 {[%clk 0:02:02.4]} 16. Nxe4 {[%clk 0:01:44.9]} 16... Nd3
{[%clk 0:02:02.5]} 17. Nc5 {[%clk 0:01:40.6]} 17... Nxc1 {[%clk 0:02:02.6]} 18.
Rxc1 {[%clk 0:01:40.5]} 18... b6 {[%clk 0:02:03]} 19. Nb3 {[%clk 0:01:38.7]}
19... c5 {[%clk 0:02:03.2]} 20. Bc3 {[%clk 0:01:37.1]} 20... Rac8 {[%clk
0:01:57.9]} 21. dxc5 {[%clk 0:01:27.8]} 21... Bxc3 {[%clk 0:01:57]} 22. bxc3
{[%clk 0:01:28.5]} 22... bxc5 {[%clk 0:01:56.4]} 23. c4 {[%clk 0:01:27]} 23...
f6 {[%clk 0:01:50.4]} 24. Nfd2 {[%clk 0:01:25.3]} 24... Kg7 {[%clk 0:01:47.7]}
25. Ne4 {[%clk 0:01:24.7]} 25... Bxe4 {[%clk 0:01:47]} 26. Bxe4 {[%clk
0:01:25.6]} 26... e6 {[%clk 0:01:45.2]} 27. Kf1 {[%clk 0:01:24.2]} 27... f5
{[%clk 0:01:45.4]} 28. Bg2 {[%clk 0:01:21.2]} 28... g5 {[%clk 0:01:45.8]} 29.
Ke2 {[%clk 0:01:20.8]} 29... Kf6 {[%clk 0:01:45.1]} 30. Rb1 {[%clk 0:01:20.6]}
30... Rc7 {[%clk 0:01:43.7]} 31. Rb2 {[%clk 0:01:14.2]} 31... g4 {[%clk
0:01:43.4]} 32. h4 {[%clk 0:01:12.8]} 32... Rd6 {[%clk 0:01:36.3]} 33. Nc1
{[%clk 0:01:05.6]} 33... Ra6 {[%clk 0:01:34.8]} 34. Nd3 {[%clk 0:00:58.1]} 34...
Ra4 {[%clk 0:01:31.9]} 35. Rc2 {[%clk 0:00:58.5]} 35... Ra3 {[%clk 0:01:30]} 36.
e4 {[%clk 0:00:58.3]} 36... Ra4 {[%clk 0:01:20.4]} 37. Kd2 {[%clk 0:00:56]}
37... Ra3 {[%clk 0:01:19.4]} 38. e5+ {[%clk 0:00:54.4]} 38... Ke7 {[%clk
0:01:18.2]} 39. Ke2 {[%clk 0:00:53.3]} 39... Ra4 {[%clk 0:01:17.2]} 40. Nc1
{[%clk 0:00:52.1]} 40... Rb4 {[%clk 0:01:13.3]} 41. Nb3 {[%clk 0:00:51.7]} 41...
Ra4 {[%clk 0:01:10.6]} 42. Nd2 {[%clk 0:00:46.5]} 42... Ra3 {[%clk 0:01:09.2]}
43. Rb2 {[%clk 0:00:45.7]} 43... Rc3 {[%clk 0:01:06]} 44. Bb7 {[%clk 0:00:39.9]}
44... Rd7 {[%clk 0:01:00.7]} 45. Bc6 {[%clk 0:00:36.1]} 45... Rc7 {[%clk
0:01:00.4]} 46. Ba8 {[%clk 0:00:35.2]} 46... Rd7 {[%clk 0:00:58.7]} 47. Bg2
{[%clk 0:00:28.1]} 47... Rc7 {[%clk 0:00:55.9]} 48. Kd1 {[%clk 0:00:25.6]} 48...
Rd7 {[%clk 0:00:52.8]} 49. Bf1 {[%clk 0:00:26]} 49... Ra3 {[%clk 0:00:50.8]} 50.
Kc2 {[%clk 0:00:25.6]} 50... Ra4 {[%clk 0:00:26.5]} 51. Be2 {[%clk 0:00:25.8]}
51... Ra3 {[%clk 0:00:26.5]} 52. Nb1 {[%clk 0:00:25.8]} 52... Ra4 {[%clk
0:00:23.6]} 53. Nc3 {[%clk 0:00:26.1]} 53... Ra3 {[%clk 0:00:22.9]} 54. Nb5
{[%clk 0:00:26.6]} 54... Ra4 {[%clk 0:00:22.3]} 55. Nd6 {[%clk 0:00:26.5]} 55...
Ra3 {[%clk 0:00:21.1]} 56. Rb8 {[%clk 0:00:23.6]} 56... Rc7 {[%clk 0:00:17.1]}
57. Kb2 {[%clk 0:00:21.9]} 57... Ra4 {[%clk 0:00:15.9]} 58. Bd1 {[%clk
0:00:21.8]} 58... Rb4+ {[%clk 0:00:15.4]} 59. Rxb4 {[%clk 0:00:21.8]} 59... cxb4
{[%clk 0:00:16.3]} 60. Ba4 {[%clk 0:00:21.1]} 60... Rc5 {[%clk 0:00:15.8]} 61.
Kb3 {[%clk 0:00:19.4]} 61... a5 {[%clk 0:00:16.3]} 62. Nb7 {[%clk 0:00:19.7]}
62... Rxe5 {[%clk 0:00:16.4]} 63. c5 {[%clk 0:00:20.6]} 63... Re1 {[%clk
0:00:14.3]} 64. Kc4 {[%clk 0:00:17.3]} 64... Rc1+ {[%clk 0:00:14.6]} 65. Kb5
{[%clk 0:00:17.4]} 65... e5 {[%clk 0:00:15.2]} 66. c6 {[%clk 0:00:16.5]} 66...
f4 {[%clk 0:00:16.1]} 67. Kb6 {[%clk 0:00:15.6]} 67... e4 {[%clk 0:00:15.8]} 68.
c7 {[%clk 0:00:14.3]} 68... e3 {[%clk 0:00:16.5]} 69. Bc6 {[%clk 0:00:14]} 69...
exf2 {[%clk 0:00:16.1]} 70. c8=Q {[%clk 0:00:14]} 70... f1=Q {[%clk 0:00:17]}
71. Qd7+ {[%clk 0:00:07.9]} 71... Kf6 {[%clk 0:00:17.9]} 72. Qd4+ {[%clk
0:00:07.9]} 72... Ke7 {[%clk 0:00:17.4]} 73. Qe5+ {[%clk 0:00:07.9]} 73... Kf7
{[%clk 0:00:17.5]} 74. Bd5+ {[%clk 0:00:06.2]} 74... Kf8 {[%clk 0:00:17.6]} 75.
Qf6+ {[%clk 0:00:05.6]} 75... Ke8 {[%clk 0:00:17.9]} 76. Nd6+ {[%clk 0:00:05.7]}
76... Kd7 {[%clk 0:00:18.8]} 77. Qe6+ {[%clk 0:00:06]} 77... Kd8 {[%clk
0:00:19.3]} 78. Qe8# {[%clk 0:00:06.9]} 1-0

[Event "*** SCC Grand Prix: Titled Tuesday Blitz"]
[Site "Chess.com"]
[Date "2020.08.25"]
[Round "3"]
[White "Paladin61"]
[Black "mishanick"]
[Result "0-1"]
[WhiteElo "2673"]
[BlackElo "2974"]
[TimeControl "180+1"]
[EndTime "10:31:48 PDT"]
[Termination "mishanick won on time"]

1. b3 {[%clk 0:03:00.9]} 1... Nf6 {[%clk 0:02:59.7]} 2. Bb2 {[%clk 0:03:01.1]}
2... g6 {[%clk 0:03:00.2]} 3. Bxf6 {[%clk 0:03:00.7]} 3... exf6 {[%clk
0:03:00.2]} 4. c4 {[%clk 0:03:00.7]} 4... Bg7 {[%clk 0:02:59.1]} 5. Nc3 {[%clk
0:02:59.7]} 5... f5 {[%clk 0:02:58.7]} 6. Rc1 {[%clk 0:02:59.1]} 6... d6 {[%clk
0:02:55.2]} 7. g3 {[%clk 0:02:58.2]} 7... Nd7 {[%clk 0:02:55.8]} 8. Bg2 {[%clk
0:02:57.9]} 8... Nf6 {[%clk 0:02:56.5]} 9. e3 {[%clk 0:02:57.3]} 9... h5 {[%clk
0:02:55.4]} 10. h4 {[%clk 0:02:55.4]} 10... Ng4 {[%clk 0:02:54.8]} 11. Nh3
{[%clk 0:02:54.4]} 11... c6 {[%clk 0:02:44.3]} 12. d4 {[%clk 0:02:52.7]} 12...
O-O {[%clk 0:02:41.3]} 13. O-O {[%clk 0:02:52]} 13... Re8 {[%clk 0:02:41.6]} 14.
b4 {[%clk 0:02:51.6]} 14... Be6 {[%clk 0:02:34.5]} 15. Qd3 {[%clk 0:02:49.7]}
15... Rc8 {[%clk 0:02:32.7]} 16. a4 {[%clk 0:02:39.4]} 16... a6 {[%clk
0:02:22.4]} 17. a5 {[%clk 0:02:37.9]} 17... Qe7 {[%clk 0:02:17.5]} 18. Na4
{[%clk 0:02:28.5]} 18... Rcd8 {[%clk 0:02:16.4]} 19. Nb6 {[%clk 0:02:26.8]}
19... Bc8 {[%clk 0:02:10.1]} 20. Rfe1 {[%clk 0:02:11.5]} 20... Nf6 {[%clk
0:02:10]} 21. b5 {[%clk 0:02:07.3]} 21... Ne4 {[%clk 0:02:07.9]} 22. bxc6 {[%clk
0:02:01.4]} 22... bxc6 {[%clk 0:02:08]} 23. Nxc8 {[%clk 0:01:38.6]} 23... Rxc8
{[%clk 0:02:07.6]} 24. Rb1 {[%clk 0:01:39.5]} 24... c5 {[%clk 0:01:42.5]} 25.
Rb6 {[%clk 0:01:32.7]} 25... cxd4 {[%clk 0:01:39.9]} 26. exd4 {[%clk 0:01:31.6]}
26... Nxf2 {[%clk 0:01:37.4]} 27. Rxe7 {[%clk 0:01:20]} 27... Nxd3 {[%clk
0:01:36.7]} 28. Rxe8+ {[%clk 0:01:18.8]} 28... Rxe8 {[%clk 0:01:37.6]} 29. Rxd6
{[%clk 0:01:18.3]} 29... Re1+ {[%clk 0:00:53.6]} 30. Bf1 {[%clk 0:01:17.4]}
30... Rd1 {[%clk 0:00:46.8]} 31. Rd8+ {[%clk 0:00:38.1]} 31... Bf8 {[%clk
0:00:46.4]} 32. Kg2 {[%clk 0:00:29.1]} 32... Rd2+ {[%clk 0:00:28.8]} 33. Kg1
{[%clk 0:00:28.9]} 33... Kg7 {[%clk 0:00:25.8]} 34. Ng5 {[%clk 0:00:24.3]} 34...
Be7 {[%clk 0:00:15.1]} 35. Rd7 {[%clk 0:00:18.3]} 35... Kf8 {[%clk 0:00:15.5]}
36. Ra7 {[%clk 0:00:07.6]} 36... Nb4 {[%clk 0:00:15.3]} 37. Nh7+ {[%clk
0:00:06.1]} 37... Ke8 {[%clk 0:00:15.1]} 38. Ra8+ {[%clk 0:00:05.7]} 38... Kd7
{[%clk 0:00:15.2]} 39. Ra7+ {[%clk 0:00:05.7]} 39... Kd8 {[%clk 0:00:09.3]} 40.
Ra8+ {[%clk 0:00:06]} 40... Kd7 {[%clk 0:00:07.3]} 41. Ra7+ {[%clk 0:00:06.9]}
41... Ke8 {[%clk 0:00:07.8]} 42. Ra8+ {[%clk 0:00:07.1]} 42... Bd8 {[%clk
0:00:08.5]} 43. Nf6+ {[%clk 0:00:06.9]} 43... Ke7 {[%clk 0:00:08.9]} 44. Ng8+
{[%clk 0:00:07.1]} 44... Kd7 {[%clk 0:00:09.3]} 45. Ra7+ {[%clk 0:00:03.8]}
45... Kc8 {[%clk 0:00:09.6]} 46. Rxf7 {[%clk 0:00:03.3]} 46... Rxd4 {[%clk
0:00:08.3]} 47. Rg7 {[%clk 0:00:03]} 47... Rd6 {[%clk 0:00:07.2]} 48. Nh6 {[%clk
0:00:02.2]} 48... Bxa5 {[%clk 0:00:07]} 49. c5 {[%clk 0:00:03.1]} 49... Rc6
{[%clk 0:00:06.9]} 50. Rg8+ {[%clk 0:00:03.2]} 50... Kd7 {[%clk 0:00:05.9]} 51.
Nf7 {[%clk 0:00:04.1]} 51... Rxc5 {[%clk 0:00:05.1]} 52. Rxg6 {[%clk 0:00:04.2]}
52... Ke7 {[%clk 0:00:05.3]} 53. Ng5 {[%clk 0:00:03.7]} 53... Bc7 {[%clk
0:00:05.4]} 54. Rg7+ {[%clk 0:00:03.6]} 54... Kd6 {[%clk 0:00:05.7]} 55. Rh7
{[%clk 0:00:04]} 55... Rc1 {[%clk 0:00:04.5]} 56. Rh6+ {[%clk 0:00:03.9]} 56...
Kd5 {[%clk 0:00:04.4]} 57. Rxh5 {[%clk 0:00:04.8]} 57... Nc2 {[%clk 0:00:04.7]}
58. Kg2 {[%clk 0:00:04.8]} 58... Ne3+ {[%clk 0:00:05.2]} 59. Kf3 {[%clk
0:00:04.8]} 59... Nxf1 {[%clk 0:00:06.1]} 60. Rh7 {[%clk 0:00:04.1]} 60... Nxg3
{[%clk 0:00:05.9]} 61. h5 {[%clk 0:00:03.2]} 61... Rc3+ {[%clk 0:00:05.5]} 62.
Kg2 {[%clk 0:00:03.4]} 62... Bf4 {[%clk 0:00:06.1]} 63. Nf3 {[%clk 0:00:02.7]}
63... Ne4 {[%clk 0:00:06]} 64. h6 {[%clk 0:00:02.3]} 64... Rc2+ {[%clk
0:00:06.4]} 65. Kg1 {[%clk 0:00:01.4]} 65... Rc1+ {[%clk 0:00:06.3]} 66. Kg2
{[%clk 0:00:01]} 66... Rc8 {[%clk 0:00:06.6]} 67. Kg1 {[%clk 0:00:01.6]} 67...
Ke6 {[%clk 0:00:06.7]} 68. Kg2 {[%clk 0:00:01.7]} 68... Kf6 {[%clk 0:00:07]} 69.
Ra7 {[%clk 0:00:01.1]} 69... Bxh6 {[%clk 0:00:05.7]} 0-1

[Event "*** SCC Grand Prix: Titled Tuesday Blitz"]
[Site "Chess.com"]
[Date "2020.08.25"]
[Round "3"]
[White "nrvisakh"]
[Black "albano87"]
[Result "1-0"]
[WhiteElo "2805"]
[BlackElo "2562"]
[TimeControl "180+1"]
[EndTime "10:31:48 PDT"]
[Termination "nrvisakh won by resignation"]

1. e4 {[%clk 0:03:00.9]} 1... c5 {[%clk 0:02:59.5]} 2. Nf3 {[%clk 0:02:56.7]}
2... Nc6 {[%clk 0:02:59.5]} 3. d4 {[%clk 0:02:49]} 3... cxd4 {[%clk 0:02:59.5]}
4. Nxd4 {[%clk 0:02:49.9]} 4... Nf6 {[%clk 0:02:59.1]} 5. Nc3 {[%clk 0:02:50.3]}
5... d6 {[%clk 0:02:59.3]} 6. Be2 {[%clk 0:02:43.7]} 6... Nxd4 {[%clk
0:02:59.3]} 7. Qxd4 {[%clk 0:02:43]} 7... g6 {[%clk 0:02:59.5]} 8. O-O {[%clk
0:02:39.1]} 8... Bg7 {[%clk 0:02:59.7]} 9. Be3 {[%clk 0:02:33.1]} 9... O-O
{[%clk 0:02:59.8]} 10. Qd2 {[%clk 0:02:33.1]} 10... Be6 {[%clk 0:02:59.9]} 11.
Rfd1 {[%clk 0:02:32.3]} 11... Rc8 {[%clk 0:02:45.5]} 12. f3 {[%clk 0:02:06]}
12... a6 {[%clk 0:02:42.4]} 13. a4 {[%clk 0:02:03]} 13... Qa5 {[%clk 0:02:24.2]}
14. Bd4 {[%clk 0:01:19.1]} 14... Nd7 {[%clk 0:02:07.1]} 15. Nd5 {[%clk
0:01:09.1]} 15... Qd8 {[%clk 0:02:03]} 16. Bxg7 {[%clk 0:01:08.3]} 16... Kxg7
{[%clk 0:02:02.4]} 17. a5 {[%clk 0:01:06.8]} 17... Bxd5 {[%clk 0:01:58.4]} 18.
exd5 {[%clk 0:01:03.3]} 18... Qc7 {[%clk 0:01:55.3]} 19. c4 {[%clk 0:00:59.2]}
19... Ne5 {[%clk 0:01:45.6]} 20. f4 {[%clk 0:00:54.4]} 20... Qc5+ {[%clk
0:01:40.9]} 21. Qd4 {[%clk 0:00:47.4]} 21... Qxd4+ {[%clk 0:01:39.4]} 22. Rxd4
{[%clk 0:00:48.3]} 22... Nd7 {[%clk 0:01:37.4]} 23. b4 {[%clk 0:00:48.2]} 23...
Rc7 {[%clk 0:01:34.8]} 24. Re4 {[%clk 0:00:47.9]} 24... Nf6 {[%clk 0:01:26.2]}
25. Re3 {[%clk 0:00:47.4]} 25... Rfc8 {[%clk 0:01:25.2]} 26. Bd3 {[%clk
0:00:46]} 26... Kf8 {[%clk 0:01:23.1]} 27. Rae1 {[%clk 0:00:45.2]} 27... Nh5
{[%clk 0:01:16]} 28. g3 {[%clk 0:00:44.7]} 28... Ng7 {[%clk 0:01:16.3]} 29. g4
{[%clk 0:00:41.8]} 29... h5 {[%clk 0:01:10.8]} 30. h3 {[%clk 0:00:41.3]} 30...
Rb8 {[%clk 0:00:54.7]} 31. Ra1 {[%clk 0:00:27]} 31... Ne8 {[%clk 0:00:50.5]} 32.
gxh5 {[%clk 0:00:24.1]} 32... gxh5 {[%clk 0:00:50.7]} 33. Be2 {[%clk 0:00:24.3]}
33... Ng7 {[%clk 0:00:47.2]} 34. Rg3 {[%clk 0:00:22.3]} 34... Nf5 {[%clk
0:00:37.1]} 35. Rg5 {[%clk 0:00:21.5]} 35... Nd4 {[%clk 0:00:36.8]} 36. Kf2
{[%clk 0:00:10.3]} 36... Nxe2 {[%clk 0:00:35.8]} 37. Kxe2 {[%clk 0:00:11.2]}
37... Rxc4 {[%clk 0:00:36.5]} 38. Rag1 {[%clk 0:00:11.1]} 38... Ke8 {[%clk
0:00:06.5]} 39. Rg8+ {[%clk 0:00:10.8]} 39... Kd7 {[%clk 0:00:07]} 40. Rxb8
{[%clk 0:00:11.7]} 40... Rxb4 {[%clk 0:00:07.8]} 41. Rc1 {[%clk 0:00:11]} 41...
Rb2+ {[%clk 0:00:07.8]} 42. Kd3 {[%clk 0:00:10.4]} 42... f5 {[%clk 0:00:07.5]}
43. Rcc8 {[%clk 0:00:10.1]} 43... e5 {[%clk 0:00:05.6]} 44. dxe6+ {[%clk
0:00:09.7]} 44... Kxe6 {[%clk 0:00:05.8]} 45. Rc2 {[%clk 0:00:10.1]} 45... Rb5
{[%clk 0:00:04.8]} 46. Kd4 {[%clk 0:00:08.7]} 46... Rb4+ {[%clk 0:00:05]} 47.
Rc4 {[%clk 0:00:08.4]} 47... Rb5 {[%clk 0:00:05.3]} 48. Re8+ {[%clk 0:00:08.1]}
48... Kd7 {[%clk 0:00:05.6]} 49. Rh8 {[%clk 0:00:08.1]} 49... Rxa5 {[%clk
0:00:04.9]} 50. Rxh5 {[%clk 0:00:08.1]} 50... b5 {[%clk 0:00:05.2]} 51. Rb4
{[%clk 0:00:05.1]} 51... Ke6 {[%clk 0:00:04.5]} 52. Rh6+ {[%clk 0:00:04.8]}
52... Kd7 {[%clk 0:00:04.3]} 53. Kd5 {[%clk 0:00:05.3]} 53... Ra1 {[%clk
0:00:04.8]} 54. Rxd6+ {[%clk 0:00:06.2]} 54... Kc7 {[%clk 0:00:05.3]} 55. Rc6+
{[%clk 0:00:06.5]} 55... Kb7 {[%clk 0:00:05.5]} 56. Rf6 {[%clk 0:00:07.4]} 56...
Rd1+ {[%clk 0:00:05.8]} 57. Rd4 {[%clk 0:00:07.3]} 57... Rh1 {[%clk 0:00:06.1]}
58. Ke5 {[%clk 0:00:07.5]} 58... Re1+ {[%clk 0:00:03.8]} 59. Kxf5 {[%clk
0:00:07.4]} 59... Re8 {[%clk 0:00:04.5]} 60. Re4 {[%clk 0:00:07.1]} 60... Kc8
{[%clk 0:00:05.4]} 61. Rxe8+ {[%clk 0:00:07]} 1-0